Cogmind - Beta 15 @@@ ROGUE MODE // 2025.05.23 @ 14:15:36 Player: mgobin-777 Result: Destroyed by Autobeam Turret with Autobeam Performance ------------- Evolutions (0) 0 Regions Visited (2) 400 Robots Destroyed (15) 75 Value Destroyed (267) 267 Prototype IDs (0) 0 Alien Tech Used (0) 0 Bonus (0) 0 TOTAL SCORE: 742 Bonus ------- None Cogmind --------- Core Integrity 0/250 Matter 168/300 Energy 94/100 System Corruption 0% Temperature Cool (6) Movement Core (200) Ox3 Location -10/Subcaves Parts ------- > --- POWER (1) -------- (None) > --- PROPULSION (2) --- (None) > --- UTILITY (2) ------ Improved Heat Sink Small Storage Unit > --- WEAPON (2) ------- Small Laser Barrage Gun > --- INVENTORY (8) ---- Improved Heat Sink Light Assault Rifle Peak State ------------ > --- POWER ------------ Ion Engine > --- PROPULSION ------- Compact Wheel > --- UTILITY ---------- Improved Heat Sink Small Storage Unit > --- WEAPON ----------- Small Laser Barrage Gun > --- INVENTORY -------- Improved Heat Sink Light Assault Rifle [Rating: 10] Favorites ----------- Power Ion Engine Engine Ion Engine Propulsion Compact Wheel Wheel Compact Wheel Utility Small Storage Unit Device Improved Heat Sink Storage Small Storage Unit Weapon Small Laser Energy Gun Small Laser Ballistic Gun Light Assault Rifle Ballistic Cannon Light Cannon Launcher Grenade Launcher Build | -11 -10 -10 ------- Run | Yrd Mat Sub Slots Evolved . | . . . Power . | . . . Propulsion . | . . . Utility . | . . . Weapon . | . . . Parts Attached 12 | 6 5 1 Power 1 | 1 . . Engine 1 | 1 . . Core . | . . . Reactor . | . . . Propulsion 3 | 2 1 . Treads . | . . . Leg . | . . . Wheel 3 | 2 1 . Hover . | . . . Flight . | . . . Utility 3 | 1 2 . Device 2 | . 2 . Storage 1 | 1 . . Processor . | . . . Hackware . | . . . Protection . | . . . Artifact . | . . . Weapon 5 | 2 2 1 Energy Gun 1 | 1 . . Energy Cannon . | . . . Ballistic Gun 2 | 1 . 1 Ballistic Cannon 1 | . 1 . Launcher 1 | . 1 . Special Weapon . | . . . Impact Weapon . | . . . Slashing Weapon . | . . . Piercing Weapon . | . . . Special Melee Weapon . | . . . Unidentified Prototypes . | . . . Parts Lost 6 | . 1 5 Power 1 | . . 1 Propulsion 3 | . 1 2 Utility . | . . . Weapon 2 | . . 2 Highest Loss Streak 4 | . 1 4 To Critical Strikes . | . . . Average Backups 1 | 1 1 2 Power . | . . . Propulsion . | . . . Utility . | . . 1 Weapon . | . . 1 Tool/Special . | . . . Unused Backups . | . . . Power . | . . . Propulsion . | . . . Utility . | . . . Weapon . | . . . Tool/Special . | . . . Average Slot Usage (%) 93 | . 93 94 Engine 13 | . 14 12 Wheel 25 | . 27 24 Device 11 | . 9 14 Storage 14 | . 14 14 Energy Gun 10 | . 12 8 Ballistic Gun 6 | . 10 1 Ballistic Cannon 4 | . 3 5 Launcher 6 | . 1 12 Peak Build Rating 10 | 6 9 10 Average Rating 8 | 3 7 8 On Entrance 5 | . 6 9 Naked Turns . | . . . Heaviest Build 17 | 12 17 17 Greatest Support 32 | 32 32 26 Greatest Overweight (x) 1 | . 1 . Average Overweight (x) . | . . . Largest Inventory Capacity 8 | 8 8 8 Average Capacity 7 | 6 8 8 Most Carried 5 | 5 4 3 Average Carried 1 | . 1 2 Final Capacity 8 | 8 8 8 Final Carried 3 | . 3 2 Class Distribution -------------------- 100% | Mutant Dominant Class ---------------- Mutant | -10/Materials Mutant | -10/Subcaves Resources | -11 -10 -10 ----------- Run | Yrd Mat Sub Matter Collected 354 | 83 201 70 Remotely . | . . . Salvage Created 246 | . 182 64 Parts 25 | . 17 8 Haulers Intercepted 1 | . 1 . Recyclers Shooed . | . . . Parts Field Recycled . | . . . Retrieved Matter . | . . . Parts Self-Destructed 3 | . . 3 Prevented . | . . . Kills | -11 -10 -10 ------- Run | Yrd Mat Sub Combat Hostiles Destroyed 11 | . 6 5 Guns 3 | . 2 1 Cannons 2 | . 2 . AOE 6 | . 2 4 Classes Destroyed 7 | . 5 2 Tunneler 1 | . 1 . Hauler 1 | . 1 . Turret 1 | . . 1 Watcher 1 | . 1 . Swarmer 7 | . 3 4 Grunt 3 | . 3 . Subdweller 1 | . . 1 Best Kill Streak 5 | . 5 5 Combat Bots Only 4 | . 3 4 Max Kills in Single Turn 3 | . 2 3 Gunslinging . | . . . Exploded 3 | . 1 3 Melee . | . . . Uniques/NPCs Destroyed . | . . . Combat | -11 -10 -10 -------- Run | Yrd Mat Sub Hostile Shots Fired 139 | . 31 108 Missed 52 | . 12 40 Hits 87 | . 19 68 Projectile 87 | . 19 68 Damage Taken 861 | . 284 577 Core 251 | . 75 176 Absorbed by Shields . | . . . Core Remaining (%) 100 | 100 . . Volleys Fired 41 | . 22 19 Largest 2 | . 2 2 Hottest 70 | . 70 70 Shots Fired 75 | . 42 33 Gun 50 | . 28 22 Cannon 16 | . 11 5 Launcher 9 | . 3 6 Special . | . . . Kinetic 36 | . 22 14 Thermal 30 | . 17 13 Explosive 9 | . 3 6 Electromagnetic . | . . . Robot Hit Streak 15 | . 15 5 Robot Miss Streak 3 | . 2 3 Penetration Max . | . . . Secondary Targets . | . . . Shots Hit Robots 52 | . 34 18 Core Hits 27 | . 15 12 Critical Kills 1 | . . 1 Critical Parts Destroyed . | . . . Critical Strikes 1 | . . 1 Destroy 1 | . . 1 Melee Attacks . | . . . Impact . | . . . Slashing . | . . . Piercing . | . . . Sneak Attacks . | . . . Combat Hostiles . | . . . Follow-up Attacks . | . . . Damage Inflicted 1171 | . 542 629 Guns 346 | . 223 123 Cannons 188 | . 154 34 Explosions 626 | . 154 472 Melee . | . . . Ramming 11 | . 11 . Kinetic 331 | . 238 93 Thermal 203 | . 139 64 Explosive 626 | . 154 472 Electromagnetic . | . . . Impact . | . . . Slashing . | . . . Piercing . | . . . Highest Corruption . | . . . Average Corruption . | . . . Corruption Purged . | . . . Corruption Blocked . | . . . Overload Shots . | . . . Overflow Damage 27 | . 18 9 Projectiles . | . . . Explosions 27 | . 18 9 Melee . | . . . Knockbacks 1 | . 1 . Impact . | . . . Kinetic 1 | . 1 . Secondary . | . . . Self-Inflicted Damage 102 | . 102 . Shots 3 | . 3 . Rammed 4 | . 4 . Targets Rammed 4 | . 4 . Kicked . | . . . Crushed . | . . . Highest Temperature 4 | . 2 4 Average Temperature 2 | . 2 4 Received Heat Transfer 438 | . 60 378 Siege Activations . | . . . Martial Activations . | . . . Shielding Activations . | . . . Robots Disrupted . | . . . Combat Hostiles . | . . . Robots Corrupted . | . . . Combat Hostiles . | . . . Parts Fried . | . . . Impact Corruptions . | . . . Robots Melted . | . . . Combat Hostiles . | . . . Parts Melted . | . . . Heat Transferred 475 | . 325 150 Parts Sabotaged . | . . . Parts Stolen . | . . . Parts Stripped . | . . . Power Chain Reactions . | . . . Alert | -11 -10 -10 ------- Run | Yrd Mat Sub Maximum Alert Level . | . . . Low Security (%) 100 | 100 100 . Level 1 . | . . . Level 2 . | . . . Level 3 . | . . . Level 4 . | . . . Level 5 . | . . . High Security . | . . . Max Security . | . . . Peak Influence 136 | . 136 . Initial . | . . . Average 30 | . 34 . Influence Increases 315 | . 215 100 Destroy 0b10 Robot/C 220 | . 120 100 Destroy 0b10 Robot/NC 15 | . 15 . Destroy Leader 44 | . 44 . Successful Hack 2 | . 2 . Destroy Structure 19 | . 19 . Lose Combat Pursuer 15 | . 15 . Influence Decreases 275 | . 89 186 Entered New Map 62 | . . 62 Time Decay 153 | . 79 74 Lost Part 60 | . 10 50 Squads Dispatched 4 | . 4 . Investigation 1 | . 1 . Extermination . | . . . Reinforcement 3 | . 3 . Assault . | . . . Garrison . | . . . Intercept . | . . . Searches Triggered . | . . . Construction Impeded . | . . . Haulers Reinforced . | . . . Active Scanning Responses . | . . . Cargo Convoy Interrupts . | . . . Stealth | -11 -10 -10 --------- Run | Yrd Mat Sub Distress Signals 1 | . 1 . Communications Jammed . | . . . Distress Signals . | . . . Times Spotted 24 | . 14 10 Peak Tracking Total 6 | . 4 6 Tactical Retreats 1 | . 1 . Traps | -11 -10 -10 ------- Run | Yrd Mat Sub Traps Triggered . | . . . Indirectly . | . . . Trap Hack Attempts . | . . . Triggered . | . . . Disarmed . | . . . Reprogrammed . | . . . Reused . | . . . Traps Extracted . | . . . Installed . | . . . Triggered . | . . . Machines | -11 -10 -10 ---------- Run | Yrd Mat Sub Machines Disabled 1 | . . 1 Max in Single Turn 1 | . . 1 Machines Repaired . | . . . Machines Dismantled . | . . . Machines Sabotaged . | . . . Overloaded Fab Kills . | . . . Hacking | -11 -10 -10 --------- Run | Yrd Mat Sub Machines Accessed 1 | . 1 . Terminals 1 | . 1 . Fabricators . | . . . Repair Stations . | . . . Recycling Units . | . . . Scanalyzers . | . . . Garrison Access . | . . . Total Hacks 3 | . 3 . Successful 2 | . 2 . Failed 1 | . 1 . Catastrophic . | . . . Database Lockouts . | . . . Manual . | . . . Terminals 3 | . 3 . Fabricators . | . . . Repair Stations . | . . . Recycling Units . | . . . Scanalyzers . | . . . Garrison Access . | . . . Terminal Hacks 2 | . 2 . Record 2 | . 2 . Fabricator Hacks . | . . . Repair Station Hacks . | . . . Recycling Unit Hacks . | . . . Scanalyzer . | . . . Garrison Access Hacks . | . . . Unauthorized Hacks . | . . . Terminals . | . . . Fabricators . | . . . Repair Stations . | . . . Recycling Units . | . . . Scanalyzers . | . . . Garrison Access . | . . . Data Cores Recovered . | . . . Used . | . . . Hacking Detections 1 | . 1 . Full Trace Events . | . . . Feedback Events . | . . . Feedback Blocked . | . . . Robot Schematics Acquired . | . . . Robots Built . | . . . Authchips . | . . . Time . | . . . Total Robot Build Rating . | . . . Part Schematics Acquired . | . . . Parts Built . | . . . Authchips . | . . . Time . | . . . Total Part Build Rating . | . . . Parts Repaired . | . . . Time . | . . . Parts Recycled . | . . . Recycled Matter . | . . . Retrieved Matter . | . . . Retrieved Components . | . . . Parts Scanalyzed . | . . . Part Schematics Acquired . | . . . Parts Damaged . | . . . Bothacking | -11 -10 -10 ------------ Run | Yrd Mat Sub Used RIF Installer . | . . . Robots Hacked . | . . . Non-combat . | . . . Combat . | . . . Robot Hacks Applied . | . . . Relay Couplers Released . | . . . Fabnet Peak Effective % . | . . . Robots Rewired . | . . . Allies Hacked . | . . . Hacks Repelled . | . . . Allies | -11 -10 -10 -------- Run | Yrd Mat Sub Total Allies . | . . . Largest Group . | . . . Highest-Rated Group . | . . . Highest-Rated Ally . | . . . Total Orders . | . . . Ally Attacks . | . . . Total Damage . | . . . Kills . | . . . Allies Corrupted . | . . . Allies Melted . | . . . Intel | -11 -10 -10 ------- Run | Yrd Mat Sub Active Infowar (turns) . | . . . Robot Analysis Total . | . . . Derelict Logs Recovered 1 | . . 1 Drone Launches . | . . . Drone Recoveries . | . . . Exploration | -11 -10 -10 ------------- Run | Yrd Mat Sub Turns Passed 541 | 37 297 207 Spaces Moved 419 | 30 217 172 Core 10 | 10 . . Treads . | . . . Legs . | . . . Wheels 409 | 20 217 172 Hover . | . . . Flight . | . . . Fastest Speed 50 | 50 90 90 Average Speed 94 | 83 100 90 Slowest Speed 115 | 100 115 90 Overloaded Moves . | . . . Propulsion Burnouts . | . . . Robots Hopped . | . . . Potential Cave-ins . | . . . Cave-ins Triggered . | . . . Exploration Rate (%) 22 | 3 44 21 Regions Visited 2 Branch Regions 1 Pre-discovered Areas . | . . . Known Exits Taken . | . . . Unknown Exits Taken 2 | 1 1 . Scrap Searched 1 | . . 1 Spaces Dug . | . . . Terrain Destroyed 51 | . 22 29 Melee . | . . . Projectile . | . . . AOE 51 | . 22 29 Terrain Rammed . | . . . Walls Destroyed . | . . . Machines Disabled . | . . . Actions | -11 -10 -10 --------- Run | Yrd Mat Sub Total 490 | 42 254 194 Wait 3 | 1 2 . Move 417 | 29 216 172 Hop . | . . . Pick Up 12 | 6 5 1 Fast Attach . | . . . Attach 10 | 6 2 2 Detach . | . . . Swap 3 | . 3 . Drop . | . . . Fire 41 | . 22 19 Melee . | . . . Ram 4 | . 4 . Kick . | . . . Crush . | . . . Escape Stasis . | . . . Rewire . | . . . Trap . | . . . Miscellaneous . | . . . Route ------- -11/Scrapyard -10/Materials (discovered 2 exits: [*Min] / [*Sub]) -10/Subcaves (discovered 1 exit: [*Rec]) History --------- Turn | Location | Event 24 | -11/Scrapyard | Discovered new exit (range 15) 38 | -11/Scrapyard | Entered Materials 39 | -10/Materials | Met a group of wandering Federalists 151 | -10/Materials | Lost 3 allies 159 | -10/Materials | Discovered new exit (range 8) 315 | -10/Materials | Build established: Mutant 323 | -10/Materials | Discovered new exit (range 9) 335 | -10/Materials | Entered Subcaves 336 | -10/Subcaves | Continued accompanying wandering Federalists (1) 423 | -10/Subcaves | Learned Materials terminal intel 463 | -10/Subcaves | Shifting Twisted Machinery released Flamer 467 | -10/Subcaves | Shifting Twisted Machinery released Barrage Gun 508 | -10/Subcaves | Discovered new exit (range 15) 517 | -10/Subcaves | Core integrity fell below 50% 533 | -10/Subcaves | Core integrity fell below 20% 542 | -10/Subcaves | Destroyed by Autobeam Turret with Autobeam Last Messages --------------- 00501_ Found Mak. Thermal Plating. 00501_ Found 66 Matter. 00502_ Acquired 66 matter. 00508_ EXIT=FOUND 00509_ Destroyed Flight Unit. 00509_ S-10 Pest destroyed. 00513_ Wheel destroyed. 00514_ Grenade Launcher destroyed. 00515_ S-10 Pest destroyed. 00518_ Machine disabled. 00518_ Com. Wheel destroyed. 00520_ Ion Engine destroyed. 00521_ Lgt. Assault Rifle fries itself beyond repair. 00524_ Lgt. Ion Engine fries itself beyond repair. 00525_ Flight Unit fries itself beyond repair. 00533_ Autobeam Turret suffers critical hit (Destroy). 00533_ Autobeam Turret destroyed. Map ----- +----------------------------------------------------+ | ?????????????????????????????????????????????????? | | ?????????????????????????????????????????????????? | | ?????????????????????????????????????????????????? | | ?????????????????????????????????????????????????? | | ?????????????????????????????????????????????????? | | ?????????????????????????????????????????????????? | | ?????????????????????????????????????????????????? | | ?????????????????????????????????????????????????? | | ?????????????????????????????????????????????????? | | ?????????????????????????????????????????????????? | | ?????????????????????????????????????????????????? | | ?????????????????????????????????????????????????? | | ?????????????????????????????????????????????????? | | ?????????????????????????????????????????????????? | | ?????????????????????????????????????????????????? | | ?????????????????????????????????????????????????? | | ?????????????????????????????????????????????????? | | ?????????????????????????????????????????????????? | | ?????????????????????????????????????????????????? | | ?????????????????????????????????????????????????? | | ?????????????#???????????????????????????????????? | | ????????????#"" %????????????????????????????????? | | ????????????# #?????????????????????????????? | | ????????????#" ######?????????????????????? | | ????????????#" [ #?????????????????????? | | ???????????#< % @ #?????????????????????? | | ?????????????""t % ##????????????????????? | | ????????????#" ##### #????????????????????? | | ????????????#" ????## ##????????????????????? | | ????????????#""" ?????## ##?????????????????????? | | ??????????????##???????# ##??????????????????????? | | ???????????????????????# #??????????????????????? | | ??????????????????????##/##??????????????????????? | | ??????????????????????# ##???????????????????????? | | ??????????????????????##!##??????????????????????? | | ???????????????????????## ##?????????????????????? | | ????????????????????????## ##?#####??????????????? | | ?????????????????????????## ### # ##?????????????? | | ??????????????????????????# # #?????????????? | | ??????????????????????????# ##### ###????????????? | | ??????????????????????????###???## #????????????? | | ?????????????????????????????????## #######??????? | | ??????????????????????????????????## # ###???## | | ???????????????????????????????????##### ##### | | ???????????????????????????????????????# | | ???????????????????????????????????????# # | | ???????????????????????????????????????##### | | ???????????????????????????????????????????## ### | | ????????????????????????????????????????????####?# | | ?????????????????????????????????????????????????? | +----------------------------------------------------+ Best States ------------- Heat Dissipation 39 Energy Generation 10 Energy Capacity 250 Matter Stores 272 Matter Capacity 300 Sight Range 16 Terrain Scan Density 10 Evasion (%) 42 Item Schematics ----------------- None Robot Schematics ------------------ None Fabricated ------------ Nothing Repaired ---------- Nothing Alien Tech Used ----------------- None Achievements -------------- None Challenges ------------ None Game ------ Seed DroneFluxBeam Manual? 0 Play Time 00:07:50 Cumulative 17.3 hours Start 2025.05.20 @ 18:32:51 End 2025.05.23 @ 14:15:36 Sessions 3 Manual Loads 0 Difficulty Rogue Special Mode None Game No. 59 Rogue 53 Adventurer 6 Explorer 0 Win Type - Total 0 Types 0/0/0/0/0/0/0/0/0/0 Lore% 9 Gallery% 18 Achievement% 19 Wizard Run 0 Options --------- Layout 1 ASCII 0 Keyboard 0 Movement Numpad Keybinds 0 Fullscreen 1 Font 24/Smallcaps Map View 50x40 Zoom Use 0% Tactical HUD 1 Map Filters NONE Filters NONE Steam 1 RUN: 5dc30478-edcf-41b9-9b3c-129dc49d79d7